[Event "Mitropa Cup Open 2022"]
[Site "Corte"]
[Date "2022.05.08"]
[Round "9.8"]
[White "Fecker, Noah"]
[Black "Haring, Filip"]
[Result "0-1"]
[ECO "B42"]
[WhiteElo "2387"]
[BlackElo "2434"]
[Annotator "TA"]
[PlyCount "76"]
[EventDate "2022.04.30"]
[EventType "team-tourn"]
[EventCountry "FRA"]
[SourceTitle "playchess.com"]
[Source "ChessBase"]
[SourceQuality "1"]
[WhiteTeam "Switzerland"]
[BlackTeam "Slovakia"]
[WhiteTeamCountry "SUI"]
[BlackTeamCountry "SVK"]
[TimeControl "40/5400+30:1800+30"]

{[%evp 14,76,23,25,28,35,11,15,33,11,39,59,82,79,147,54,99,30,35,43,34,0,26,-82,-31,-46,-8,-33,-10,-102,-122,-120,-137,-127,-142,-133,-136,-139,-106,-166,-147,-141,-64,-304,-306,-294,-287,-296,-295,-393,-391,-391,-414,-381,-367,-782,-785,-739,-712,-917,-876,-1360,-1248,-1228,-1187]} 1. e4 {[%emt 0:00:02]} c5 {[%emt 0:00:09]} 2. Nf3 {[%emt 0:00:05]} e6 {[%emt 0:00:11]} 3. d4 {[%emt 0:00:08]} cxd4 {[%emt 0:00:06]} 4. Nxd4 {[%emt 0:00:04]} a6 {[%emt 0:00:11]} 5. Bd3 {[%emt 0:00:12]} Bc5 {[%emt 0:00:32]} 6. Nb3 {[%emt 0:00:15]} Ba7 {[%emt 0:00:26]} 7. Qg4 {[%emt 0:00:21]} Nf6 {[%emt 0:00:19]} 8. Qg3 {[%emt 0:00:13] Black must now prevent e5.} d6 {[%emt 0:00:26] B42: Sicilian: Kan Variation: 5 Bd3.} 9. Nc3 {[%emt 0:00:19]} ({But not} 9. Qxg7 Rg8 10. Qh6 Bxf2+ $1 11. Kd1 Rxg2 $17) 9... Nc6 {[%emt 0:00:23]} 10. Bd2 {[%emt 0:00:12]} (10. Qxg7 Rg8 11. Qh6 Bxf2+ $1 12. Kd1 Rg6 $17) 10... b5 {[%emt 0:01:46] The position is equal.} 11. a3 {[%emt 0:00:16]} ({Much worse is} 11. Qxg7 Rg8 12. Qh6 Bxf2+ $1 {[%mdl 512]} 13. Kd1 Ne5 $17) 11... Ne5 {[%emt 0:03:37]} 12. Be2 {[%emt 0:13:58] [#]} O-O $146 {[%emt 0:12:27]} ({Predecessor:} 12... h5 13. Be3 Bxe3 14. Qxe3 Rb8 15. Qd4 Qb6 16. O-O-O Qxd4 17. Rxd4 Rb6 18. f4 Ng6 {½-½ (77) Kochavi,D (1895)-Lapushnian,M (1503) Tel Aviv 2021}) 13. Bg5 {[%emt 0:07:15]} Kh8 {[%emt 0:06:26]} ({Better is} 13... Ned7) 14. O-O-O {[%emt 0:15:18]} ({White should play} 14. f4 $1 $16 {[%cal Rf4e5]} Nc4 15. O-O-O) 14... Qb6 {[%emt 0:09:35]} 15. Be3 {[%emt 0:12:05]} (15. Rhf1 $16) 15... Qb8 $11 {[%emt 0:05:16]} 16. Bxa7 {[%emt 0:04:53]} Rxa7 {[%emt 0:00:21]} 17. Rd4 {[%emt 0:00:31]} (17. f4 $5 {[%cal Rf4e5]} Nc4 18. Rhf1 $11) 17... Ne8 {[%emt 0:07:57]} 18. Qh4 {[%emt 0:07:45]} (18. f4 $11 Ng6 19. Rd2) 18... Ng6 {[%emt 0:11:55]} (18... Bd7 $1 $17) 19. Qg3 $1 $15 {[%emt 0:02:43]} e5 {[%emt 0:03:32]} 20. Rd2 {[%emt 0:01:18]} Nf4 {[%emt 0:07:15] Threatening ...Bd7.} 21. Nd5 {[%emt 0:11:03]} (21. Bf1 $1 $11 {remains equal.}) 21... Nxd5 $17 {[%emt 0:00:54]} 22. exd5 {[%emt 0:01:21] [#]} a5 $1 {[%emt 0:00:23][%cal Ba6a5,Ba5a4][%mdl 32]} 23. f4 {[%emt 0:04:16]} a4 $36 {[%emt 0:00:57][%mdl 2048] Keeping White busy.} 24. Na1 {[%emt 0:00:36]} Nf6 {[%emt 0:00:56] aiming for ...b4.} 25. Qe3 {[%emt 0:04:05][%cal Oe2b5]} Re7 {[%emt 0:04:33][%cal Ba7e7,Be7e4,Be4b4,Bb4b6][%mdl 32]} 26. Rf1 {[%emt 0:04:20]} (26. c3 $17) 26... Qb7 {[%emt 0:05:10]} 27. f5 {[%emt 0:02:59]} e4 {[%emt 0:04:30]} (27... Rc7 $17 {...b4 is the strong threat.} 28. Kb1 Bd7) 28. Qd4 $2 {[%emt 0:02:31] [#] Now White is beyond hope.} (28. g4 $15) 28... e3 $1 $19 {[%emt 0:01:51]} 29. Rdd1 {[%emt 0:00:55]} Re4 {[%emt 0:01:47]} 30. Qd3 {[%emt 0:00:53]} b4 {[%emt 0:02:50]} 31. axb4 {[%emt 0:00:09]} Rxb4 {[%emt 0:00:21]} 32. Qa3 {[%emt 0:00:18]} Bd7 {[%emt 0:01:25] Hoping for ...Rb8.} 33. c3 {[%emt 0:00:57]} Rb6 {[%emt 0:00:14] Threatens to win with ...Rb8.} 34. Nc2 $2 {[%emt 0:00:29]} (34. Rf4 Nxd5 35. Bf3) 34... Rb3 {[%emt 0:00:59] Black is clearly winning.} 35. Qxd6 {[%emt 0:00:49]} Rb8 {[%emt 0:01:49]} 36. Rf4 {[%emt 0:01:17] [#]} Rxc3 $3 {[%emt 0:00:48][%csl Gb8][%cal Rb7b2][%mdl 512]} 37. Qxb8+ {[%emt 0:00:30]} (37. Rb4 Rxc2+) 37... Qxb8 {[%emt 0:00:03]} 38. bxc3 {[%emt 0:00:08]} Qxf4 {[%emt 0:00:04] Weighted Error Value: White=0.70/Black=0.13 (very precise)} 0-1